[Event "*** SCC Grand Prix: Titled Tuesday Blitz"]
[Site "Chess.com"]
[Date "2020.07.07"]
[Round "5"]
[White "RoelandPruijssers"]
[Black "IsaacWiebe"]
[Result "1-0"]
[WhiteElo "2609"]
[BlackElo "2091"]
[TimeControl "180+1"]
[EndTime "10:55:03 PDT"]
[Termination "RoelandPruijssers won by resignation"]

1. e4 {[%clk 0:02:59.9]} 1... e6 {[%clk 0:02:57]} 2. d4 {[%clk 0:02:54.5]} 2...
d5 {[%clk 0:02:57]} 3. Nd2 {[%clk 0:02:54.6]} 3... c5 {[%clk 0:02:55.8]} 4. exd5
{[%clk 0:02:53.6]} 4... Qxd5 {[%clk 0:02:55.9]} 5. Ngf3 {[%clk 0:02:52.9]} 5...
cxd4 {[%clk 0:02:56.1]} 6. Bc4 {[%clk 0:02:40.8]} 6... Qd6 {[%clk 0:02:55.1]} 7.
O-O {[%clk 0:02:32.1]} 7... Nf6 {[%clk 0:02:53.5]} 8. Nb3 {[%clk 0:02:30.9]}
8... Nc6 {[%clk 0:02:52.9]} 9. Nbxd4 {[%clk 0:02:29.4]} 9... Nxd4 {[%clk
0:02:53.1]} 10. Nxd4 {[%clk 0:02:30.3]} 10... a6 {[%clk 0:02:52.9]} 11. Bd3
{[%clk 0:02:25.2]} 11... Qc7 {[%clk 0:02:32.5]} 12. Qf3 {[%clk 0:02:13.5]} 12...
Bd6 {[%clk 0:02:22]} 13. h3 {[%clk 0:02:02.4]} 13... O-O {[%clk 0:01:57.5]} 14.
Bg5 {[%clk 0:02:00.5]} 14... Be5 {[%clk 0:01:07.6]} 15. c3 {[%clk 0:01:59.5]}
15... Nd5 {[%clk 0:00:36.4]} 16. Rfe1 {[%clk 0:01:40.4]} 16... Bf4 {[%clk
0:00:34.2]} 17. Qh5 {[%clk 0:01:04.8]} 17... g6 {[%clk 0:00:33.5]} 18. Qh6
{[%clk 0:01:00.9]} 18... Bxg5 {[%clk 0:00:33.7]} 19. Qxg5 {[%clk 0:00:59.3]}
19... Qf4 {[%clk 0:00:34.1]} 20. Qxf4 {[%clk 0:00:58.7]} 20... Nxf4 {[%clk
0:00:34.1]} 21. Be4 {[%clk 0:00:57.6]} 21... e5 {[%clk 0:00:20.6]} 22. Nf3
{[%clk 0:00:54.6]} 22... f6 {[%clk 0:00:20.6]} 23. Rad1 {[%clk 0:00:52.1]} 23...
Rb8 {[%clk 0:00:13.4]} 24. Rd6 {[%clk 0:00:50]} 24... Kg7 {[%clk 0:00:12.9]} 25.
Red1 {[%clk 0:00:37.9]} 25... Rf7 {[%clk 0:00:10.5]} 26. h4 {[%clk 0:00:34.6]}
26... Bf5 {[%clk 0:00:08.9]} 27. Bxf5 {[%clk 0:00:31.6]} 27... gxf5 {[%clk
0:00:09.8]} 28. g3 {[%clk 0:00:32]} 28... Rc7 {[%clk 0:00:09.4]} 29. gxf4 {[%clk
0:00:31.1]} 1-0

[Event "*** SCC Grand Prix: Titled Tuesday Blitz"]
[Site "Chess.com"]
[Date "2020.07.07"]
[Round "5"]
[White "Rodchenkov_Vitalij"]
[Black "Shuvalov"]
[Result "0-1"]
[WhiteElo "2369"]
[BlackElo "2519"]
[TimeControl "180+1"]
[EndTime "10:55:06 PDT"]
[Termination "Shuvalov won by resignation"]

1. d4 {[%clk 0:03:00.9]} 1... d5 {[%clk 0:02:59.4]} 2. Nf3 {[%clk 0:03:00.1]}
2... Nf6 {[%clk 0:02:59]} 3. c4 {[%clk 0:02:59.4]} 3... c6 {[%clk 0:02:59]} 4.
e3 {[%clk 0:02:58.5]} 4... Bf5 {[%clk 0:02:57.8]} 5. Nc3 {[%clk 0:02:57]} 5...
e6 {[%clk 0:02:57.7]} 6. Nh4 {[%clk 0:02:54.4]} 6... Bg6 {[%clk 0:02:57.1]} 7.
Be2 {[%clk 0:02:38.5]} 7... Nbd7 {[%clk 0:02:54.9]} 8. cxd5 {[%clk 0:02:35.1]}
8... exd5 {[%clk 0:02:51.5]} 9. Qb3 {[%clk 0:02:22.1]} 9... Qb6 {[%clk
0:02:27.6]} 10. Qxb6 {[%clk 0:02:14.2]} 10... axb6 {[%clk 0:02:28.5]} 11. Nxg6
{[%clk 0:02:13.3]} 11... hxg6 {[%clk 0:02:28.1]} 12. Bd2 {[%clk 0:02:07.1]}
12... Bd6 {[%clk 0:02:25.5]} 13. h3 {[%clk 0:02:04.7]} 13... g5 {[%clk
0:02:10.9]} 14. g4 {[%clk 0:01:22.8]} 14... b5 {[%clk 0:01:52.8]} 15. Bf3 {[%clk
0:01:21.2]} 15... b4 {[%clk 0:01:48.5]} 16. Ne2 {[%clk 0:01:15.1]} 16... Nf8
{[%clk 0:01:33.6]} 17. Ng3 {[%clk 0:01:15]} 17... Bxg3 {[%clk 0:01:12.3]} 18.
fxg3 {[%clk 0:01:14]} 18... b3 {[%clk 0:00:54.9]} 19. a3 {[%clk 0:01:13.1]}
19... N8d7 {[%clk 0:00:33.1]} 20. Kf2 {[%clk 0:01:09.8]} 20... Nb6 {[%clk
0:00:33]} 21. Bb4 {[%clk 0:00:52.7]} 21... Nc4 {[%clk 0:00:28.6]} 22. Rab1
{[%clk 0:00:52.5]} 22... Kd7 {[%clk 0:00:27.4]} 23. h4 {[%clk 0:00:45.8]} 23...
gxh4 {[%clk 0:00:19.7]} 24. gxh4 {[%clk 0:00:45.2]} 24... Rae8 {[%clk
0:00:20.2]} 25. g5 {[%clk 0:00:34.3]} 25... Ne4+ {[%clk 0:00:19.9]} 26. Kg2
{[%clk 0:00:20]} 26... Nxe3+ {[%clk 0:00:18.8]} 0-1

[Event "*** SCC Grand Prix: Titled Tuesday Blitz"]
[Site "Chess.com"]
[Date "2020.07.07"]
[Round "5"]
[White "Kopytkin"]
[Black "Maili15"]
[Result "1-0"]
[WhiteElo "2464"]
[BlackElo "2252"]
[TimeControl "180+1"]
[EndTime "10:55:08 PDT"]
[Termination "Kopytkin won on time"]

1. e4 {[%clk 0:03:00.9]} 1... c5 {[%clk 0:02:48.1]} 2. d4 {[%clk 0:03:00.4]}
2... cxd4 {[%clk 0:02:46.7]} 3. c3 {[%clk 0:03:00.8]} 3... d3 {[%clk 0:02:46.1]}
4. Bxd3 {[%clk 0:03:00.4]} 4... g6 {[%clk 0:02:45.3]} 5. Be3 {[%clk 0:03:00.6]}
5... Bg7 {[%clk 0:02:45.6]} 6. Nd2 {[%clk 0:03:00.8]} 6... Nc6 {[%clk
0:02:45.6]} 7. f4 {[%clk 0:03:00.9]} 7... d6 {[%clk 0:02:45.4]} 8. Ngf3 {[%clk
0:03:00.9]} 8... Nf6 {[%clk 0:02:45.5]} 9. h3 {[%clk 0:03:01.2]} 9... O-O {[%clk
0:02:45.5]} 10. O-O {[%clk 0:03:01.4]} 10... Qc7 {[%clk 0:02:38.2]} 11. Qe1
{[%clk 0:03:01.5]} 11... e5 {[%clk 0:02:22]} 12. Qh4 {[%clk 0:02:40.7]} 12...
exf4 {[%clk 0:01:57]} 13. Bxf4 {[%clk 0:02:25]} 13... Nh5 {[%clk 0:01:55.1]} 14.
Be3 {[%clk 0:02:20]} 14... Ne5 {[%clk 0:01:37.9]} 15. Bc2 {[%clk 0:02:12.1]}
15... Bd7 {[%clk 0:01:11.7]} 16. Nd4 {[%clk 0:02:11.8]} 16... Qd8 {[%clk
0:00:52.3]} 17. Bg5 {[%clk 0:02:09.4]} 17... f6 {[%clk 0:00:50]} 18. Be3 {[%clk
0:02:08.9]} 18... f5 {[%clk 0:00:34.4]} 19. Bg5 {[%clk 0:02:07]} 19... Bf6
{[%clk 0:00:30.7]} 20. Bxf6 {[%clk 0:01:52.1]} 20... Qxf6 {[%clk 0:00:29.4]} 21.
Qxf6 {[%clk 0:01:52.3]} 21... Rxf6 {[%clk 0:00:28.5]} 22. exf5 {[%clk
0:01:52.6]} 22... Ng3 {[%clk 0:00:25.5]} 23. Rf2 {[%clk 0:01:37]} 23... gxf5
{[%clk 0:00:18.9]} 24. Ne4 {[%clk 0:01:28.3]} 24... Nxe4 {[%clk 0:00:13.7]} 25.
Bxe4 {[%clk 0:01:29.2]} 25... Kg7 {[%clk 0:00:06.9]} 26. Nxf5+ {[%clk
0:01:16.9]} 26... Bxf5 {[%clk 0:00:06.3]} 27. Rxf5 {[%clk 0:01:16.6]} 27... Rxf5
{[%clk 0:00:05.3]} 28. Bxf5 {[%clk 0:01:16.9]} 28... Rf8 {[%clk 0:00:05]} 29. g4
{[%clk 0:01:17.1]} 29... d5 {[%clk 0:00:05.1]} 30. Rd1 {[%clk 0:01:16.4]} 30...
Rd8 {[%clk 0:00:05.1]} 31. Kf2 {[%clk 0:01:11.9]} 31... Nc4 {[%clk 0:00:04.9]}
32. b3 {[%clk 0:01:09.6]} 32... Nb6 {[%clk 0:00:05.1]} 33. c4 {[%clk 0:01:08.3]}
33... Kf6 {[%clk 0:00:04.6]} 34. c5 {[%clk 0:01:06.7]} 34... Na8 {[%clk
0:00:03.6]} 35. Ke3 {[%clk 0:01:00.9]} 35... Nc7 {[%clk 0:00:03.8]} 36. a4
{[%clk 0:00:58.1]} 36... Ke5 {[%clk 0:00:03.5]} 37. Kd3 {[%clk 0:00:56.4]} 37...
Na6 {[%clk 0:00:02.7]} 38. Re1+ {[%clk 0:00:56.4]} 38... Kf4 {[%clk 0:00:02.7]}
39. Kd4 {[%clk 0:00:56.9]} 1-0

[Event "*** SCC Grand Prix: Titled Tuesday Blitz"]
[Site "Chess.com"]
[Date "2020.07.07"]
[Round "5"]
[White "Juanovic"]
[Black "Nemsko"]
[Result "1-0"]
[WhiteElo "2084"]
[BlackElo "2286"]
[TimeControl "180+1"]
[EndTime "10:55:08 PDT"]
[Termination "Juanovic won by checkmate"]

1. e4 {[%clk 0:03:00.9]} 1... e5 {[%clk 0:02:59]} 2. Nf3 {[%clk 0:03:00.4]} 2...
Nc6 {[%clk 0:02:58.7]} 3. Bb5 {[%clk 0:03:00.1]} 3... a6 {[%clk 0:02:58.3]} 4.
Ba4 {[%clk 0:02:59.7]} 4... Nf6 {[%clk 0:02:59]} 5. O-O {[%clk 0:02:59.6]} 5...
Be7 {[%clk 0:02:59.6]} 6. d3 {[%clk 0:02:59.5]} 6... b5 {[%clk 0:02:59.4]} 7.
Bb3 {[%clk 0:02:59.5]} 7... O-O {[%clk 0:02:59.8]} 8. c3 {[%clk 0:02:59.8]} 8...
d6 {[%clk 0:03:00.4]} 9. h3 {[%clk 0:03:00]} 9... Be6 {[%clk 0:03:00.9]} 10.
Bxe6 {[%clk 0:02:47.4]} 10... fxe6 {[%clk 0:03:00.8]} 11. a4 {[%clk 0:02:38.5]}
11... Rb8 {[%clk 0:02:58.7]} 12. axb5 {[%clk 0:02:37.7]} 12... axb5 {[%clk
0:02:59.6]} 13. Qb3 {[%clk 0:02:31.2]} 13... Qd7 {[%clk 0:02:45.3]} 14. Bg5
{[%clk 0:02:22.5]} 14... Ra8 {[%clk 0:02:37.5]} 15. Rxa8 {[%clk 0:02:20.9]}
15... Rxa8 {[%clk 0:02:38.4]} 16. Bxf6 {[%clk 0:02:16.3]} 16... Bxf6 {[%clk
0:02:37.5]} 17. Qxb5 {[%clk 0:02:13]} 17... Rb8 {[%clk 0:02:34]} 18. Qa4 {[%clk
0:01:54.3]} 18... Rxb2 {[%clk 0:02:31.4]} 19. Nbd2 {[%clk 0:01:46.6]} 19... Nb8
{[%clk 0:02:18.3]} 20. Qa3 {[%clk 0:01:42.3]} 20... Qb5 {[%clk 0:02:15]} 21. Nc4
{[%clk 0:01:37.7]} 21... Rb3 {[%clk 0:02:09.6]} 22. Qa1 {[%clk 0:01:28.7]} 22...
h6 {[%clk 0:01:46.7]} 23. Nfd2 {[%clk 0:01:28.4]} 23... d5 {[%clk 0:01:36.8]}
24. Nxb3 {[%clk 0:01:06.4]} 24... dxc4 {[%clk 0:01:33.3]} 25. dxc4 {[%clk
0:01:02.2]} 25... Qxb3 {[%clk 0:01:31.5]} 26. Rb1 {[%clk 0:01:02]} 26... Qxc4
{[%clk 0:01:31.5]} 27. Rxb8+ {[%clk 0:01:01.4]} 27... Kh7 {[%clk 0:01:31.7]} 28.
Qb2 {[%clk 0:00:42.4]} 28... Qxe4 {[%clk 0:01:28.8]} 29. Qb1 {[%clk 0:00:42.4]}
29... Qf5 {[%clk 0:01:22.5]} 30. g4 {[%clk 0:00:37.7]} 30... Qxb1+ {[%clk
0:01:21.1]} 31. Rxb1 {[%clk 0:00:38.6]} 31... e4 {[%clk 0:01:21.6]} 32. c4
{[%clk 0:00:38.7]} 32... Bd4 {[%clk 0:01:20.4]} 33. Kf1 {[%clk 0:00:38.6]} 33...
e3 {[%clk 0:01:19.9]} 34. fxe3 {[%clk 0:00:37.1]} 34... Bxe3 {[%clk 0:01:20.8]}
35. Ke2 {[%clk 0:00:37.7]} 35... Bd4 {[%clk 0:01:20.4]} 36. Kf3 {[%clk
0:00:37.2]} 36... e5 {[%clk 0:01:20.2]} 37. Ke4 {[%clk 0:00:37.7]} 37... c5
{[%clk 0:01:20.7]} 38. h4 {[%clk 0:00:36.4]} 38... Kg6 {[%clk 0:01:18.1]} 39.
Rb6+ {[%clk 0:00:34.9]} 39... Kf7 {[%clk 0:01:17.4]} 40. Kf5 {[%clk 0:00:32.6]}
40... Bc3 {[%clk 0:01:09.3]} 41. Rb7+ {[%clk 0:00:32.6]} 41... Kf8 {[%clk
0:01:04.2]} 42. Rc7 {[%clk 0:00:24.4]} 42... Bd4 {[%clk 0:01:03.9]} 43. g5
{[%clk 0:00:22.1]} 43... hxg5 {[%clk 0:01:03.4]} 44. hxg5 {[%clk 0:00:23]} 44...
Kg8 {[%clk 0:00:51.3]} 45. g6 {[%clk 0:00:22.8]} 45... Kf8 {[%clk 0:00:51.7]}
46. Ke6 {[%clk 0:00:22.4]} 46... Ke8 {[%clk 0:00:51]} 47. Rc8# {[%clk
0:00:22.4]} 1-0

[Event "*** SCC Grand Prix: Titled Tuesday Blitz"]
[Site "Chess.com"]
[Date "2020.07.07"]
[Round "5"]
[White "Vesper2018"]
[Black "BilodeauA"]
[Result "0-1"]
[WhiteElo "2562"]
[BlackElo "2840"]
[TimeControl "180+1"]
[EndTime "10:55:13 PDT"]
[Termination "BilodeauA won on time"]

1. e4 {[%clk 0:02:58.9]} 1... e5 {[%clk 0:03:00.2]} 2. Nf3 {[%clk 0:02:59.2]}
2... Nc6 {[%clk 0:03:00.9]} 3. Bc4 {[%clk 0:02:59.4]} 3... Bc5 {[%clk
0:03:00.1]} 4. d3 {[%clk 0:02:59]} 4... Nf6 {[%clk 0:02:58.1]} 5. Bg5 {[%clk
0:02:57.8]} 5... d6 {[%clk 0:02:56.9]} 6. c3 {[%clk 0:02:56.9]} 6... a6 {[%clk
0:02:57.2]} 7. a4 {[%clk 0:02:54.6]} 7... h6 {[%clk 0:02:57.6]} 8. Bh4 {[%clk
0:02:54.4]} 8... g5 {[%clk 0:02:57.8]} 9. Bg3 {[%clk 0:02:54.5]} 9... O-O {[%clk
0:02:58.5]} 10. O-O {[%clk 0:02:54.1]} 10... Kg7 {[%clk 0:02:59]} 11. Re1 {[%clk
0:02:46.8]} 11... Ba7 {[%clk 0:02:59.1]} 12. Nbd2 {[%clk 0:02:45.3]} 12... Nh7
{[%clk 0:02:58.7]} 13. Nf1 {[%clk 0:02:40.7]} 13... f5 {[%clk 0:02:57.8]} 14.
exf5 {[%clk 0:02:40]} 14... Bxf5 {[%clk 0:02:58.7]} 15. h3 {[%clk 0:02:13.1]}
15... Nf6 {[%clk 0:02:54.7]} 16. Ne3 {[%clk 0:02:04.5]} 16... Bg6 {[%clk
0:02:54.4]} 17. Nd5 {[%clk 0:01:54.7]} 17... Nxd5 {[%clk 0:02:53.8]} 18. Bxd5
{[%clk 0:01:54.7]} 18... Qd7 {[%clk 0:02:51.6]} 19. Qd2 {[%clk 0:01:48.8]} 19...
Rae8 {[%clk 0:02:49.2]} 20. Nh2 {[%clk 0:01:45.4]} 20... Ne7 {[%clk 0:02:43.7]}
21. Bxb7 {[%clk 0:01:23.3]} 21... Nf5 {[%clk 0:02:43.8]} 22. Kh1 {[%clk
0:01:22.8]} 22... Nxg3+ {[%clk 0:02:22]} 23. fxg3 {[%clk 0:01:22.6]} 23... c6
{[%clk 0:02:22.4]} 24. Bxa6 {[%clk 0:01:20.1]} 24... d5 {[%clk 0:02:23]} 25. d4
{[%clk 0:01:12.8]} 25... e4 {[%clk 0:02:23.2]} 26. Nf1 {[%clk 0:01:03.8]} 26...
Bb8 {[%clk 0:02:20.8]} 27. Re3 {[%clk 0:00:51.4]} 27... Rf6 {[%clk 0:02:19.1]}
28. Nh2 {[%clk 0:00:42]} 28... h5 {[%clk 0:02:16.4]} 29. Rf1 {[%clk 0:00:39]}
29... Ref8 {[%clk 0:02:16.4]} 30. Rxf6 {[%clk 0:00:34.2]} 30... Rxf6 {[%clk
0:02:17.3]} 31. Nf1 {[%clk 0:00:26.8]} 31... Qf7 {[%clk 0:02:09]} 32. Re1 {[%clk
0:00:24.9]} 32... Rf5 {[%clk 0:02:00.1]} 33. Kg1 {[%clk 0:00:23.4]} 33... h4
{[%clk 0:01:59.3]} 34. g4 {[%clk 0:00:21]} 34... Rf4 {[%clk 0:01:59.6]} 35. b4
{[%clk 0:00:16.2]} 35... Qa7 {[%clk 0:01:59]} 36. b5 {[%clk 0:00:15.7]} 36...
Rf7 {[%clk 0:01:42.8]} 37. Qa2 {[%clk 0:00:13.9]} 37... Qc7 {[%clk 0:01:38.5]}
38. a5 {[%clk 0:00:12.3]} 38... e3 {[%clk 0:01:04.5]} 39. b6 {[%clk 0:00:05.4]}
39... Rxf1+ {[%clk 0:00:59.9]} 40. Kxf1 {[%clk 0:00:04.5]} 40... Qf4+ {[%clk
0:00:59.8]} 0-1

[Event "*** SCC Grand Prix: Titled Tuesday Blitz"]
[Site "Chess.com"]
[Date "2020.07.07"]
[Round "5"]
[White "Kildepiotr"]
[Black "grunbergmihai"]
[Result "1/2-1/2"]
[WhiteElo "2606"]
[BlackElo "2443"]
[TimeControl "180+1"]
[EndTime "10:55:13 PDT"]
[Termination "Game drawn by repetition"]

1. Nf3 {[%clk 0:03:00.9]} 1... Nf6 {[%clk 0:02:56.9]} 2. g3 {[%clk 0:03:01]}
2... g6 {[%clk 0:02:56.8]} 3. Bg2 {[%clk 0:03:01.6]} 3... Bg7 {[%clk 0:02:57.7]}
4. O-O {[%clk 0:03:02.2]} 4... O-O {[%clk 0:02:58.6]} 5. d4 {[%clk 0:03:02.7]}
5... c5 {[%clk 0:02:58.3]} 6. c3 {[%clk 0:03:02.4]} 6... d6 {[%clk 0:02:54.9]}
7. dxc5 {[%clk 0:03:02.1]} 7... dxc5 {[%clk 0:02:54.4]} 8. Nbd2 {[%clk
0:03:02.6]} 8... Nc6 {[%clk 0:02:53.8]} 9. e4 {[%clk 0:03:02.5]} 9... Bg4 {[%clk
0:02:42.2]} 10. Qc2 {[%clk 0:03:02.3]} 10... Qc8 {[%clk 0:02:34.2]} 11. Nc4
{[%clk 0:03:01.6]} 11... Bh3 {[%clk 0:02:30.5]} 12. Re1 {[%clk 0:02:57.2]} 12...
Bxg2 {[%clk 0:02:29.6]} 13. Kxg2 {[%clk 0:02:58.1]} 13... Nd7 {[%clk 0:02:21.8]}
14. a4 {[%clk 0:02:55.3]} 14... Nde5 {[%clk 0:02:18.9]} 15. Nfxe5 {[%clk
0:02:54.3]} 15... Nxe5 {[%clk 0:02:18.8]} 16. Ne3 {[%clk 0:02:54.7]} 16... c4
{[%clk 0:02:15.5]} 17. Rd1 {[%clk 0:02:50]} 17... Rd8 {[%clk 0:01:59.7]} 18.
Rxd8+ {[%clk 0:02:39.9]} 18... Qxd8 {[%clk 0:01:58.6]} 19. f4 {[%clk 0:02:33.9]}
19... Nd3 {[%clk 0:01:42]} 20. Qe2 {[%clk 0:02:22.1]} 20... Rc8 {[%clk
0:01:40.3]} 21. Nf1 {[%clk 0:02:15.1]} 21... Qb6 {[%clk 0:01:35.7]} 22. Be3
{[%clk 0:02:12.5]} 22... Qxb2 {[%clk 0:01:34.1]} 23. Qxb2 {[%clk 0:02:11.7]}
23... Nxb2 {[%clk 0:01:35]} 24. Bd2 {[%clk 0:02:04.4]} 24... Nd3 {[%clk
0:01:28.4]} 25. Rb1 {[%clk 0:01:56.6]} 25... Rc7 {[%clk 0:01:26.2]} 26. Kf3
{[%clk 0:01:56.2]} 26... e5 {[%clk 0:01:22.8]} 27. Ne3 {[%clk 0:01:54.2]} 27...
exf4 {[%clk 0:01:20.2]} 28. gxf4 {[%clk 0:01:55.1]} 28... b6 {[%clk 0:01:13.5]}
29. Nd5 {[%clk 0:01:54.3]} 29... Rd7 {[%clk 0:01:13.2]} 30. a5 {[%clk
0:01:50.6]} 30... f5 {[%clk 0:01:01.4]} 31. axb6 {[%clk 0:01:48.4]} 31... axb6
{[%clk 0:00:59.9]} 32. Nxb6 {[%clk 0:01:36.3]} 32... fxe4+ {[%clk 0:00:59.5]}
33. Kxe4 {[%clk 0:01:26.8]} 33... Nc5+ {[%clk 0:00:58.8]} 34. Ke3 {[%clk
0:01:26.9]} 34... Rd3+ {[%clk 0:00:57.9]} 35. Ke2 {[%clk 0:01:27.3]} 35... Bxc3
{[%clk 0:00:55.8]} 36. Nxc4 {[%clk 0:01:24.7]} 36... Bxd2 {[%clk 0:00:50.4]} 37.
Nxd2 {[%clk 0:01:21.3]} 37... Rd7 {[%clk 0:00:40.6]} 38. Rb5 {[%clk 0:01:16.6]}
38... Ne6 {[%clk 0:00:40.1]} 39. Ke3 {[%clk 0:01:10.1]} 39... Nd4 {[%clk
0:00:39]} 40. Rb8+ {[%clk 0:01:07.8]} 40... Kg7 {[%clk 0:00:39]} 41. Ne4 {[%clk
0:01:02.6]} 41... Nf5+ {[%clk 0:00:38.7]} 42. Kf2 {[%clk 0:01:02.9]} 42... h6
{[%clk 0:00:35.5]} 43. Rb4 {[%clk 0:00:50.9]} 43... Kf7 {[%clk 0:00:31.2]} 44.
Ke2 {[%clk 0:00:45.2]} 44... Kg7 {[%clk 0:00:30.9]} 45. Kf2 {[%clk 0:00:44.8]}
45... Kf7 {[%clk 0:00:30.8]} 46. Ke2 {[%clk 0:00:45.1]} 46... Kg7 {[%clk
0:00:30.8]} 47. Kf2 {[%clk 0:00:45.3]} 1/2-1/2

[Event "*** SCC Grand Prix: Titled Tuesday Blitz"]
[Site "Chess.com"]
[Date "2020.07.07"]
[Round "5"]
[White "CarlosAlbornoz"]
[Black "Chessmasterzt"]
[Result "1-0"]
[WhiteElo "2803"]
[BlackElo "2606"]
[TimeControl "180+1"]
[EndTime "10:55:14 PDT"]
[Termination "CarlosAlbornoz won on time"]

1. e4 {[%clk 0:03:00.9]} 1... d5 {[%clk 0:02:58.3]} 2. exd5 {[%clk 0:03:00.7]}
2... Nf6 {[%clk 0:02:57]} 3. Nf3 {[%clk 0:02:59.9]} 3... Bg4 {[%clk 0:02:55.3]}
4. d4 {[%clk 0:02:56.8]} 4... Qxd5 {[%clk 0:02:54.5]} 5. c4 {[%clk 0:02:53.3]}
5... Bxf3 {[%clk 0:02:40.3]} 6. gxf3 {[%clk 0:02:52.7]} 6... Qh5 {[%clk
0:02:35.8]} 7. Nc3 {[%clk 0:02:52.6]} 7... e6 {[%clk 0:02:30.2]} 8. Be3 {[%clk
0:02:50.9]} 8... Bb4 {[%clk 0:02:21.8]} 9. Qc2 {[%clk 0:02:45.9]} 9... Nbd7
{[%clk 0:02:07.3]} 10. O-O-O {[%clk 0:02:44.9]} 10... Qa5 {[%clk 0:01:55]} 11.
Na4 {[%clk 0:02:26.4]} 11... Nb6 {[%clk 0:01:22]} 12. Nxb6 {[%clk 0:02:20.7]}
12... axb6 {[%clk 0:01:16.4]} 13. a3 {[%clk 0:02:20.6]} 13... Be7 {[%clk
0:01:12.6]} 14. Rg1 {[%clk 0:02:17]} 14... O-O {[%clk 0:00:35.3]} 15. Bd3 {[%clk
0:02:12.6]} 15... Kh8 {[%clk 0:00:33.5]} 16. Rg5 {[%clk 0:01:56]} 16... Qa4
{[%clk 0:00:32]} 17. Qe2 {[%clk 0:01:51.6]} 17... Qb3 {[%clk 0:00:27.9]} 18. Bc2
{[%clk 0:01:30.5]} 18... Qa2 {[%clk 0:00:24.9]} 19. Qd3 {[%clk 0:01:30.2]} 19...
g6 {[%clk 0:00:18.9]} 20. Rb5 {[%clk 0:01:18.5]} 20... c6 {[%clk 0:00:14.6]} 21.
Rxb6 {[%clk 0:01:15.1]} 21... Nd7 {[%clk 0:00:14.9]} 22. Rxb7 {[%clk 0:01:13.7]}
22... Rfb8 {[%clk 0:00:15.4]} 23. Qb3 {[%clk 0:01:01]} 23... Qxb3 {[%clk
0:00:12.6]} 24. Rxb3 {[%clk 0:01:01.9]} 24... Rxb3 {[%clk 0:00:12]} 25. Bxb3
{[%clk 0:01:02.8]} 25... Kg7 {[%clk 0:00:10.6]} 26. d5 {[%clk 0:01:01.9]} 26...
exd5 {[%clk 0:00:09.8]} 27. cxd5 {[%clk 0:01:02.8]} 27... cxd5 {[%clk
0:00:08.8]} 28. Rxd5 {[%clk 0:00:58.3]} 28... Nc5 {[%clk 0:00:07.8]} 29. Bc2
{[%clk 0:00:51.5]} 29... Ne6 {[%clk 0:00:06.8]} 30. Rd7 {[%clk 0:00:48]} 30...
Kf8 {[%clk 0:00:05.9]} 31. Bb3 {[%clk 0:00:46]} 31... Ra6 {[%clk 0:00:02.2]} 32.
Kb1 {[%clk 0:00:42]} 32... Rc6 {[%clk 0:00:02.1]} 33. Bd5 {[%clk 0:00:41.2]}
33... Rb6 {[%clk 0:00:01.5]} 34. Bxb6 {[%clk 0:00:40.6]} 1-0

[Event "*** SCC Grand Prix: Titled Tuesday Blitz"]
[Site "Chess.com"]
[Date "2020.07.07"]
[Round "5"]
[White "mikheeva86"]
[Black "ahachess"]
[Result "0-1"]
[WhiteElo "1923"]
[BlackElo "2276"]
[TimeControl "180+1"]
[EndTime "10:55:15 PDT"]
[Termination "ahachess won by resignation"]

1. e4 {[%clk 0:03:00.9]} 1... c5 {[%clk 0:02:59.3]} 2. Nc3 {[%clk 0:02:59.4]}
2... Nc6 {[%clk 0:02:59.3]} 3. g3 {[%clk 0:02:59.5]} 3... g6 {[%clk 0:02:59.5]}
4. Bg2 {[%clk 0:03:00]} 4... Bg7 {[%clk 0:03:00.3]} 5. d3 {[%clk 0:03:00.9]}
5... e6 {[%clk 0:03:00.6]} 6. Be3 {[%clk 0:03:01.5]} 6... d6 {[%clk 0:03:00.5]}
7. Qd2 {[%clk 0:03:01.7]} 7... Rb8 {[%clk 0:02:58.6]} 8. Nge2 {[%clk 0:02:57]}
8... Nd4 {[%clk 0:02:57.7]} 9. O-O {[%clk 0:02:52.5]} 9... Ne7 {[%clk
0:02:55.3]} 10. Nd1 {[%clk 0:02:49.7]} 10... O-O {[%clk 0:02:50.9]} 11. Nxd4
{[%clk 0:02:45.4]} 11... cxd4 {[%clk 0:02:50.2]} 12. Bh6 {[%clk 0:02:44.2]}
12... Bd7 {[%clk 0:02:47.9]} 13. Bxg7 {[%clk 0:02:43.1]} 13... Kxg7 {[%clk
0:02:48.5]} 14. c3 {[%clk 0:02:37.8]} 14... Nc6 {[%clk 0:02:48.2]} 15. cxd4
{[%clk 0:02:36.6]} 15... Nxd4 {[%clk 0:02:48]} 16. Ne3 {[%clk 0:02:25]} 16...
Rc8 {[%clk 0:02:42.6]} 17. Rfc1 {[%clk 0:02:20.6]} 17... Qb6 {[%clk 0:02:39.6]}
18. Nc4 {[%clk 0:02:17.2]} 18... Qa6 {[%clk 0:02:39.4]} 19. Kh1 {[%clk 0:02:08]}
19... Bb5 {[%clk 0:02:34.4]} 20. b3 {[%clk 0:02:02.9]} 20... Bxc4 {[%clk
0:02:25]} 21. dxc4 {[%clk 0:01:59.6]} 21... e5 {[%clk 0:02:24.6]} 22. f4 {[%clk
0:01:52.5]} 22... f6 {[%clk 0:02:09.6]} 23. fxe5 {[%clk 0:01:33.4]} 23... dxe5
{[%clk 0:02:08.5]} 24. Qe3 {[%clk 0:01:03.8]} 24... Qa3 {[%clk 0:02:01.7]} 25.
Qd2 {[%clk 0:00:56.7]} 25... Rfd8 {[%clk 0:02:00.5]} 26. Qf2 {[%clk 0:00:55.8]}
26... Rd6 {[%clk 0:01:54.7]} 27. Rf1 {[%clk 0:00:52.3]} 27... Rf8 {[%clk
0:01:41]} 28. g4 {[%clk 0:00:41.5]} 28... h6 {[%clk 0:01:39.3]} 29. h4 {[%clk
0:00:38.7]} 29... Ne6 {[%clk 0:01:38.5]} 30. Rac1 {[%clk 0:00:22.2]} 30... b6
{[%clk 0:01:36.4]} 31. Rcd1 {[%clk 0:00:19.8]} 31... Nf4 {[%clk 0:01:35.1]} 32.
Rxd6 {[%clk 0:00:18.2]} 32... Qxd6 {[%clk 0:01:34.8]} 33. Bf3 {[%clk 0:00:17]}
33... Rd8 {[%clk 0:01:14.1]} 34. Rd1 {[%clk 0:00:15.8]} 34... Qe7 {[%clk
0:01:14.4]} 35. Rxd8 {[%clk 0:00:14.1]} 35... Qxd8 {[%clk 0:01:14.4]} 36. Qe1
{[%clk 0:00:13.6]} 36... Qd4 {[%clk 0:01:07.1]} 37. Qd1 {[%clk 0:00:13.5]} 37...
Nd3 {[%clk 0:01:06.8]} 38. Kg2 {[%clk 0:00:11.5]} 38... Kf7 {[%clk 0:01:02.1]}
39. Qe2 {[%clk 0:00:09.3]} 39... Nf4+ {[%clk 0:01:01.2]} 0-1